bitfinex-derivatives/quotes_ETHF0:USTF0_20250430
["timestamp","ask_amount","ask_price","bid_price","bid_amount"]
[1746037717295,14.97581,1783.1,1782.6,3.2078]
[1746037717296,3.2078,1783.1,1782.6,3.2078]
[1746037717596,3.964,1783.0,1782.9,1.12169]
[1746037717800,5.08564,1783.0,1782.9,1.12169]
[1746037718098,5.08564,1783.0,1782.9,2.44479]
[1746037719999,1.1216,1783.1,1783.0,1.12158]
[1746037720798,7.73304,1783.3,1783.2,1.12152]
[1746037720994,3.76904,1783.3,1783.2,1.12152]
[1746037721199,1.12144,1783.4,1783.3,1.12144]
[1746037721392,2.80319,1783.6,1783.2,1.2681]
[1746037721597,3.2078,1783.3,1782.9,5.83]
[1746037721902,1.12164,1783.0,1782.9,1.12168]
[1746037722297,1.12162,1783.1,1783.0,1.12163]
[1746037723009,3.76398,1783.2,1783.1,1.12158]
[1746037723396,1.1216,1783.1,1783.0,1.12159]
[1746037724210,2.6424,1783.2,1782.8,8.56281]
[1746037724211,1.12171,1782.9,1782.8,3.2078]
[1746037724799,4.11821,1782.9,1782.8,3.2078]
[1746037726411,1.12183,1782.7,1782.6,5.83]
[1746037727306,1.12183,1782.7,1782.6,7.4338]
[1746037727503,1.12183,1782.7,1782.6,8.5557]
[1746037727705,1.12183,1782.7,1782.6,7.4338]
[1746037728209,1.12183,1782.7,1782.6,8.5557]
[1746037728408,1.12183,1782.7,1782.6,7.4338]
[1746037728910,1.12183,1782.7,1782.6,8.5557]
[1746037729607,1.12183,1782.7,1782.6,7.4338]
[1746037729808,1.12183,1782.7,1782.6,1.6038]
[1746037730004,1.12183,1782.7,1782.6,2.7257]
[1746037731706,4.5058,1782.9,1782.8,1.12177]
[1746037731914,1.12177,1782.9,1782.8,1.12173]
[1746037732213,1.12177,1782.8,1782.7,4.01317]
[1746037733211,1.12177,1782.8,1782.7,2.75593]
[1746037734010,3.72125,1782.9,1782.8,1.12177]
[1746037734207,1.12175,1782.9,1782.8,2.78587]
[1746037734408,1.12171,1782.9,1782.8,2.78587]
[1746037734815,5.08567,1783.0,1782.9,1.12171]
[1746037735116,5.08564,1783.0,1782.9,4.16661]
[1746037736711,5.08564,1783.0,1782.9,2.78581]
[1746037736911,6.44014,1783.0,1782.9,2.78581]
[1746037737309,6.44014,1783.0,1782.9,1.6641]
[1746037737504,1.12171,1782.9,1782.8,1.12173]
[1746037737714,4.15101,1782.9,1782.8,1.12173]
[1746037738415,2.40451,1782.9,1782.8,2.78013]
[1746037738616,6.4402,1783.0,1782.9,1.12171]
[1746037738914,6.4402,1783.0,1782.9,2.78011]
[1746037739718,2.80427,1782.9,1782.2,6.01317]
[1746037739916,1.12202,1782.4,1782.3,4.08096]
[1746037740111,1.12199,1782.5,1782.4,1.12198]
[1746037740312,1.12199,1782.5,1782.4,2.71828]
[1746037740811,2.85359,1782.5,1782.4,2.71828]
[1746037741011,1.7316,1782.5,1782.4,2.71828]
[1746037741215,2.85356,1782.5,1782.4,2.71828]
[1746037742815,7.74432,1782.5,1782.0,3.2078]
[1746037743019,1.12213,1782.3,1782.2,1.12208]
[1746037743220,1.12213,1782.3,1782.2,1.12215]
[1746037743420,1.12215,1782.2,1782.1,2.71846]
[1746037743618,5.08708,1782.4,1782.1,4.40181]
[1746037743824,5.08708,1782.4,1782.3,1.12208]
[1746037744321,5.08708,1782.4,1782.3,2.75818]
[1746037744619,5.08708,1782.4,1782.3,1.6361]
[1746037745016,1.12208,1782.3,1782.2,3.2078]
[1746037745210,1.1224,1781.8,1781.7,2.75856]
[1746037745921,1.12238,1781.9,1781.8,1.12237]
[1746037746222,1.11472295,1781.9,1781.8,2.75847]
[1746037746419,1.12232,1782.0,1781.9,1.12234]
[1746037746619,5.08725,1782.1,1782.0,1.12227]
[1746037747022,5.08725,1782.1,1782.0,2.77127]
[1746037748017,3.965,1782.1,1782.0,2.77127]
[1746037748322,1.12187,1782.7,1782.6,1.12187]
[1746037749617,1.12179,1782.8,1782.7,1.12178]
[1746037749824,1.12173,1782.9,1782.8,1.12177]
[1746037750318,1.12177,1782.8,1782.7,4.12248]
[1746037750621,1.12177,1782.8,1782.7,3.0007]
[1746037750822,1.12177,1782.8,1782.7,1.6673]
[1746037751221,4.10257,1782.8,1782.7,1.6673]
[1746037752020,4.10257,1782.8,1782.5,2.45531]
[1746037752220,1.1219,1782.6,1782.5,44.92261]
[1746037752422,1.1219,1782.6,1782.5,43.25531]
[1746037752924,1.1219,1782.6,1782.5,2.45531]
[1746037754229,1.1219,1782.6,1782.5,1.12191]
[1746037754927,4.04639,1782.7,1782.6,1.1219]
[1746037755428,3.958,1783.0,1782.9,1.12171]
[1746037756126,5.07964,1783.0,1782.9,1.12171]
[1746037756323,3.2078,1783.1,1782.7,1.2567]
[1746037756516,1.12167,1783.0,1782.9,1.12164]
[1746037756721,4.32944,1783.1,1783.0,1.12164]
[1746037757930,6.41351,1783.3,1782.9,2.80415]
[1746037758127,1.12157,1783.2,1783.1,1.12154]
[1746037758323,5.292,1783.3,1783.0,1.2567]
[1746037758324,6.919,1783.3,1783.0,1.2567]
[1746037758628,6.919,1783.3,1783.2,1.12152]
[1746037758629,3.958,1783.3,1783.2,1.12152]
[1746037758830,2.41599,1783.4,1783.3,1.12146]
[1746037759734,1.2946,1783.4,1783.3,1.12146]
[1746037759924,3.0954,1783.5,1783.2,1.3707]
[1746037760126,7.18996,1783.5,1782.8,3.2078]
[1746037760325,1.12159,1783.2,1783.1,1.12157]
[1746037761028,2.86279,1783.2,1783.1,1.12157]
[1746037761223,1.7412,1783.2,1783.1,1.12157]
[1746037762234,2.86272,1783.2,1783.1,1.12157]
[1746037762735,7.75282,1783.2,1782.8,3.2078]
[1746037762933,1.12171,1782.9,1782.8,4.32951]
[1746037763633,2.87131,1783.0,1782.9,1.12171]
[1746037763943,3.67763,1783.1,1783.0,1.12164]
[1746037764845,1.12164,1783.0,1782.9,2.43047]
[1746037765032,1.12164,1783.0,1782.9,1.12167]
[1746037765234,2.77824,1783.0,1782.9,1.12167]
[1746037766032,2.77824,1783.0,1782.8,3.2078]
[1746037766033,1.12176,1782.9,1782.8,1.12172]
[1746037766331,2.77836,1782.9,1782.8,1.12172]
[1746037767828,1.12177,1782.8,1782.7,1.6108]
[1746037768042,1.12183,1782.7,1782.6,1.12187]
[1746037768330,1.12183,1782.7,1782.6,2.85447]
[1746037768532,6.97743,1782.7,1782.6,2.85447]
[1746037768733,1.12194,1782.6,1782.5,1.12196]
[1746037768926,2.74244,1782.6,1782.5,1.12196]
[1746037769127,2.74244,1782.6,1782.5,2.85456]
[1746037772032,2.74244,1782.6,1782.5,1.7326]
[1746037772326,1.12202,1782.4,1782.3,2.75793]
[1746037772531,1.12202,1782.4,1782.3,2.75798]
[1746037772730,1.12208,1782.3,1782.2,1.12209]
[1746037773136,5.50968,1782.3,1782.2,1.12209]
[1746037773348,4.3876,1782.3,1781.8,10.92711563]
[1746037773634,4.3876,1782.3,1781.3,21.24691263]
[1746037773635,1.12265,1781.4,1781.3,21.24691263]
[1746037773826,70.37165,1781.4,1781.3,21.24691263]
[1746037774033,73.206,1781.4,1781.3,21.24691263]
[1746037774231,76.4138,1781.4,1781.3,21.24691263]
[1746037774429,73.57945,1781.4,1781.3,22.88481263]
[1746037774633,8.28745,1781.4,1781.3,21.24691263]
[1746037774932,8.28745,1781.4,1781.3,19.73408327]
[1746037775133,8.28745,1781.4,1781.3,20.01468263]
[1746037775533,4.33045,1781.4,1781.3,20.01468263]
[1746037775736,8.28745,1781.4,1781.3,20.01468263]
[1746037776133,8.28745,1781.4,1781.3,18.51224263]
[1746037776429,1.12271,1781.3,1780.8,33.14425325]
[1746037776629,2.81831,1781.3,1781.0,1.12287]
[1746037776834,2.81831,1781.3,1780.9,1.6379]
[1746037777229,3.2078,1781.4,1781.2,26.89979882]
[1746037777433,4.33045,1781.4,1781.3,1.6942]
[1746037777632,10.02585,1781.4,1781.3,1.6942]
[1746037778436,4.9502,1781.4,1781.0,1.1229]
[1746037778637,5.07575,1781.3,1781.1,1.12284]
[1746037778836,6.81815,1781.3,1781.1,1.12284]
[1746037779133,3.953,1781.2,1780.8,1.2946]
[1746037779538,5.07579,1781.2,1781.0,1.12287]
[1746037779730,3.953,1781.2,1781.0,1.12287]
[1746037780031,3.953,1781.2,1780.9,1.12291]
[1746037780232,2.73064,1781.1,1781.0,3.828]
[1746037780438,2.73064,1781.1,1781.0,4.9509]
[1746037780738,4.33047,1781.4,1781.3,1.12271]
[1746037780944,1.12271,1781.3,1781.1,1.12279]
[1746037781427,2.73051,1781.3,1781.1,2.83869]
[1746037782038,2.73051,1781.3,1781.2,1.12278]
[1746037782233,2.73051,1781.3,1781.2,1.7159]
[1746037782539,2.73051,1781.3,1781.2,2.83868]
[1746037782743,3.2078,1781.4,1781.3,1.12271]
[1746037782941,7.1618,1781.4,1781.3,1.12271]
[1746037783135,8.28445,1781.4,1781.3,4.95071]
[1746037783338,7.1618,1781.4,1781.3,4.95071]
[1746037783636,8.28445,1781.4,1781.3,3.828]
[1746037783841,10.00895,1781.4,1781.3,3.828]
[1746037784242,1.12284,1781.1,1781.0,2.78526]
[1746037784443,5.07684,1781.1,1781.0,1.6624]
[1746037785246,5.07684,1781.1,1781.0,5.4904]
[1746037785543,5.07684,1781.1,1781.0,3.828]
[1746037786145,1.1229,1781.0,1780.9,5.99317]
[1746037786338,2.7121,1781.0,1780.9,1.6624]
[1746037786746,1.12297,1780.9,1780.8,2.41757]
[1746037786945,4.39663,1780.9,1780.4,3.2078]
[1746037787142,7.1618,1780.8,1780.5,1.7343]
[1746037787343,1.12316,1780.6,1780.5,2.85746]
[1746037787740,1.12322,1780.5,1780.4,3.828]
[1746037788041,5.07722,1780.5,1780.4,3.828]
[1746037788244,1.12328,1780.4,1780.3,2.85759]
[1746037788442,1.12328,1780.4,1780.3,1.7343]
[1746037788645,8.28506,1780.5,1780.3,1.7343]
[1746037788848,3.955,1780.4,1780.3,2.85764]
[1746037789044,2.8074,1781.0,1780.4,2.8082]
[1746037789045,3.2078,1780.9,1780.4,2.8082]
[1746037789348,1.1231,1780.7,1780.6,1.12311]
[1746037790143,1.1231,1780.7,1780.6,1.12312]
[1746037790351,5.6189,1780.8,1780.5,5.5039]
[1746037790649,1.12295,1781.0,1780.6,2.8079]
[1746037790848,3.955,1781.1,1781.0,1.1229]
[1746037791050,1.12293,1781.0,1780.9,1.12294]
[1746037791345,6.74177,1781.1,1781.0,4.9509]
[1746037791541,4.5237,1781.2,1781.1,1.12284]
[1746037791748,7.1628,1781.2,1781.1,2.79874]
[1746037791950,3.2078,1781.2,1781.1,2.79874]
[1746037792145,8.28558,1781.2,1781.1,2.79874]
[1746037792541,7.1628,1781.2,1781.1,2.79874]
[1746037792735,8.28558,1781.2,1781.1,2.79874]
[1746037793047,7.1628,1781.2,1781.1,2.79874]
[1746037793249,3.955,1781.2,1781.1,2.79874]
[1746037793443,1.12275,1781.3,1781.2,1.12273]
[1746037793640,5.07775,1781.3,1781.2,1.12273]
[1746037794037,4.3305,1781.4,1781.3,1.12271]
[1746037794243,8.2855,1781.4,1781.3,1.12271]
[1746037794444,7.1628,1781.4,1781.3,1.12271]
[1746037794951,8.28545,1781.4,1781.3,1.12271]
[1746037795145,8.28545,1781.4,1781.3,4.95071]
[1746037796249,8.28545,1781.4,1781.3,1.12271]
[1746037796846,1.12278,1781.2,1781.1,3.73028]
[1746037797748,4.40773,1781.3,1780.9,3.2078]
[1746037798046,1.12289,1781.1,1781.0,1.12286]
[1746037799052,6.78383,1781.2,1781.1,1.12284]
[1746037799552,6.78382,1781.2,1781.1,1.12284]
[1746037799750,1.12289,1781.1,1781.0,1.12286]
[1746037800256,1.1229,1781.0,1780.9,1.12293]
[1746037800548,1.12303,1780.8,1780.7,3.2078]
[1746037800747,5.07803,1780.8,1780.7,3.2078]
[1746037800949,1.12316,1780.6,1780.5,1.1232]
[1746037801148,5.07806,1780.8,1780.7,1.12309]
[1746037801347,5.95229,1780.9,1780.8,1.12303]
[1746037801553,8.28579,1780.9,1780.8,1.12303]
[1746037801742,4.33079,1780.9,1780.8,1.12303]
[1746037802055,8.28579,1780.9,1780.8,1.12303]
[1746037802254,5.61446,1781.1,1780.5,2.80805]
[1746037802255,3.2078,1781.1,1780.5,2.80805]
[1746037802452,5.07784,1781.1,1781.0,1.1229]
[1746037803049,1.12295,1781.0,1780.9,1.12291]
[1746037803751,9.97004,1781.1,1780.7,1.3407]
[1746037803946,6.01522,1780.9,1780.5,3.2078]
[1746037804157,1.12328,1780.4,1780.3,3.76829]
[1746037804960,3.955,1780.5,1780.4,1.12328]
[1746037805150,3.955,1780.5,1780.4,8.15908]
[1746037805349,4.9333,1781.0,1780.4,3.828]
[1746037805658,5.076,1780.9,1780.8,1.12298]
[1746037805850,3.953,1780.9,1780.8,1.12298]
[1746037806056,1.7255,1781.0,1780.9,1.12297]
[1746037806360,7.1608,1781.2,1781.1,1.12284]
[1746037806558,8.28358,1781.2,1781.1,1.12284]
[1746037806758,1.12289,1781.1,1781.0,1.12285]
[1746037806956,2.84839,1781.1,1781.0,1.12285]
[1746037807157,2.84839,1781.1,1781.0,4.95085]
[1746037808155,2.84839,1781.1,1781.0,1.12285]
[1746037809351,2.84839,1781.1,1781.0,4.95085]
[1746037809759,2.84839,1781.1,1781.0,3.828]
[1746037810057,2.84839,1781.1,1781.0,4.9509]
[1746037810261,2.84839,1781.1,1781.0,1.1229]
[1746037811361,7.1608,1781.2,1781.1,1.12284]
[1746037811362,8.28362,1781.2,1781.1,1.12284]
[1746037811662,7.1608,1781.2,1781.1,1.12284]
[1746037811958,3.953,1781.2,1781.1,1.12284]
[1746037812460,5.07578,1781.2,1781.1,1.12284]
[1746037813761,5.07569,1781.4,1781.0,4.49232]
[1746037813972,1.6116,1781.6,1781.5,1.12259]
[1746037814860,2.73413,1781.6,1781.5,1.12259]
[1746037815055,1.6116,1781.6,1781.5,1.12259]
[1746037815256,2.73413,1781.6,1781.5,1.12259]
[1746037815463,1.6116,1781.6,1781.5,1.12259]
[1746037815762,2.73413,1781.6,1781.5,1.12259]
[1746037815961,2.73413,1781.6,1781.5,2.72559]
[1746037816656,1.6116,1781.6,1781.5,2.72559]
[1746037817161,2.73413,1781.6,1781.5,2.72559]
[1746037817561,1.6116,1781.6,1781.5,2.72559]
[1746037818059,3.73942103,1781.7,1781.6,1.12253]
[1746037818259,3.73942103,1781.7,1781.6,2.73793]
[1746037818958,15.25513155,1781.8,1781.7,1.12246]
[1746037818959,5.60913155,1781.8,1781.7,1.12246]
[1746037819165,2.63333466,1782.0,1781.9,1.12234]
[1746037819369,2.49279661,1782.0,1781.9,4.33014]
[1746037819660,0.87210661,1782.0,1781.9,50.13014]
[1746037819856,0.87210661,1782.0,1781.9,51.79414]
[1746037820255,0.87210661,1782.0,1781.9,55.62214]
[1746037821760,0.87210661,1782.0,1781.9,55.62214]
[1746037821965,5.20217661,1782.0,1781.9,3.828]
[1746037822165,1.12234,1781.9,1781.8,2.78635]
[1746037822367,2.79914,1781.9,1781.8,2.78635]
[1746037823068,1.12244,1781.8,1781.7,1.12242]
[1746037823267,2.79924,1781.8,1781.7,1.12242]
[1746037823569,4.8846,1781.8,1781.4,2.80661]
[1746037823767,1.12253,1781.6,1781.5,1.6022]
[1746037824168,1.1227,1781.4,1781.3,1.1227]
[1746037824362,1.12271,1781.3,1781.2,2.72495]
[1746037824561,1.12281,1781.2,1781.0,3.2078]
[1746037824863,2.79961,1781.2,1781.1,1.12284]
[1746037825268,1.6768,1781.2,1781.1,1.12284]
[1746037825868,3.952,1781.4,1781.3,1.12271]
[1746037826057,5.07465,1781.4,1781.3,1.12271]
[1746037826256,6.67685,1781.4,1781.3,1.12271]
[1746037826567,1.12271,1781.3,1781.2,2.77272]
[1746037826768,2.72491,1781.3,1781.2,2.77272]
[1746037827169,1.6022,1781.3,1781.2,2.77272]
[1746037827374,5.07467,1781.4,1781.3,1.12271]
[1746037827663,8.762,1781.4,1781.3,1.12271]
[1746037827863,6.67685,1781.4,1781.3,1.12271]
[1746037828066,5.5542,1781.4,1781.3,1.12271]
[1746037828266,6.67685,1781.4,1781.3,4.95071]
[1746037829173,5.5542,1781.4,1781.3,4.95071]
[1746037829374,6.67685,1781.4,1781.3,3.828]
[1746037829575,9.88465,1781.4,1781.3,3.828]
[1746037830173,1.12271,1781.3,1781.2,1.12273]
[1746037830369,2.80901,1781.3,1781.2,2.79313]
[1746037830575,1.12278,1781.2,1781.1,14.82799278]
[1746037830873,2.80908,1781.2,1781.1,15.95083278]
[1746037831262,2.80908,1781.2,1781.1,14.82799278]
[1746037831467,2.80908,1781.2,1781.1,15.95083278]
[1746037831869,1.6863,1781.2,1781.1,15.95083278]
[1746037832363,2.80908,1781.2,1781.1,15.95083278]
[1746037832966,1.6863,1781.2,1781.1,15.95083278]
[1746037833264,1.6863,1781.2,1781.1,1.12284]
[1746037833469,2.80908,1781.2,1781.1,1.12284]
[1746037833671,2.80908,1781.2,1781.1,2.86514]
[1746037834077,1.12277,1781.3,1781.2,1.12274]
[1746037834270,2.88287,1781.3,1781.2,2.86504]
[1746037834578,1.7601,1781.3,1781.0,3.828]
[1746037834878,1.12284,1781.1,1781.0,4.95084]
[1746037835579,1.12284,1781.1,1781.0,3.828]
[1746037835778,1.12284,1781.1,1781.0,4.9509]
[1746037836089,8.95,1781.1,1780.4,9.96801]
[1746037836377,1.12303,1780.9,1780.8,1.12301]
[1746037836579,4.10784,1781.0,1780.9,1.12297]
[1746037836880,1.12303,1780.8,1780.7,2.86493]
[1746037837275,1.12303,1780.8,1780.7,6.69293]
[1746037837472,1.12303,1780.8,1780.7,6.69299]
[1746037838871,1.12303,1780.9,1780.8,1.12299]
[1746037839580,2.85273,1780.9,1780.8,1.12299]
[1746037840273,2.85273,1780.9,1780.8,3.828]
[1746037842385,1.12303,1780.8,1780.7,1.12305]
[1746037842679,2.85873,1780.8,1780.7,1.12305]
[1746037842882,1.7357,1780.8,1780.7,1.12305]
[1746037843180,2.85873,1780.8,1780.7,4.95105]
[1746037843377,2.85873,1780.8,1780.7,3.828]
[1746037843680,3.2078,1780.8,1780.7,3.828]
[1746037843983,2.80715,1781.1,1780.7,3.828]
[1746037843984,1.12293,1781.0,1780.9,1.12291]
[1746037844280,1.12293,1781.0,1780.9,2.74561]
[1746037844581,8.8032,1781.1,1780.8,1.2745]
[1746037844582,1.12297,1780.9,1780.8,1.2745]
[1746037844878,1.12297,1780.9,1780.8,2.3975]
[1746037845080,1.12297,1780.9,1780.8,1.123]
[1746037845272,1.12297,1780.9,1780.8,4.951]
[1746037845471,2.76837,1780.9,1780.8,4.951]
[1746037847978,5.2519,1781.1,1780.8,6.63557]
[1746037848278,3.95,1781.2,1781.1,1.12279]
[1746037848478,5.6334,1781.2,1781.1,1.12279]
[1746037849176,6.75623,1781.2,1781.1,1.12279]
[1746037849381,5.6334,1781.2,1781.1,1.12279]
[1746037849580,3.95,1781.2,1781.1,2.85839]
[1746037849782,3.95,1781.2,1781.1,6.06619]
[1746037850084,5.47458,1781.4,1781.3,1.12271]
[1746037850382,4.33042,1781.5,1781.4,1.12265]
[1746037850580,8.28042,1781.5,1781.4,1.12265]
[1746037850782,9.98812,1781.5,1781.4,1.12265]
[1746037851175,9.98812,1781.5,1781.4,4.95065]
[1746037851783,6.03812,1781.5,1781.4,6.69425]
[1746037852086,7.46379821,1781.7,1781.6,1.12253]
[1746037852274,11.41379821,1781.7,1781.6,1.12253]
[1746037852482,7.46379821,1781.7,1781.6,2.86613]
[1746037854084,7.46379821,1781.7,1781.6,1.12253]
[1746037854283,7.46379821,1781.7,1781.6,2.72553]
[1746037855081,7.46379821,1781.7,1781.6,7.72553]
[1746037855687,6.73901,1782.1,1782.0,1.12227]
[1746037856078,6.73901,1782.1,1782.0,4.95027]
[1746037856477,6.73901,1782.1,1782.0,3.828]
[1746037857284,1.12234,1781.9,1781.8,1.12239]
[1746037857783,1.12234,1781.9,1781.8,1.1224]
[1746037858083,1.1224,1781.8,1781.7,1.12241]
[1746037858288,2.8359,1781.8,1781.7,4.95041]
[1746037858580,2.8359,1781.8,1781.7,3.828]
[1746037858783,14.9927,1781.8,1781.7,3.828]
[1746037858978,1.12265,1781.4,1781.3,1.12268]
[1746037859482,5.539,1781.5,1781.4,1.12265]
[1746037859987,6.66159,1781.5,1781.4,1.12265]
[1746037860183,5.539,1781.5,1781.4,4.95065]
[1746037860485,3.949,1781.5,1781.4,4.95065]
[1746037861091,2.5506,1781.9,1781.6,1.12253]
[1746037861390,3.949,1781.8,1781.7,2.86096]
[1746037862088,2.80632,1781.6,1780.8,2.80757]
[1746037862288,6.01462,1781.3,1780.9,1.5885]
[1746037862485,1.1229,1781.0,1780.9,1.5885]
[1746037862688,1.12297,1780.9,1780.8,1.123]
[1746037863093,1.12297,1780.9,1780.8,4.951]
[1746037866293,4.5672,1781.1,1780.9,1.12297]
[1746037866493,1.3594,1781.1,1781.0,1.1229]
[1746037866790,4.12519,1781.1,1781.0,1.1229]
[1746037866987,6.31951,1781.2,1781.1,1.12284]
[1746037867191,1.12281,1781.2,1781.1,1.12284]
[1746037867384,1.12284,1781.1,1781.0,4.95085]
[1746037867591,1.12284,1781.1,1781.0,6.62855]
[1746037868494,1.12284,1781.1,1781.0,5.5057]
[1746037868696,1.12284,1781.1,1781.0,3.828]
[1746037868888,4.33064,1781.1,1781.0,3.828]
[1746037869197,8.2078,1781.1,1780.7,3.2078]
[1746037869393,1.123,1780.9,1780.7,4.9453]
[1746037869586,1.12302,1780.9,1780.7,3.2078]
[1746037869794,1.12303,1780.8,1780.7,4.33085]
[1746037870095,1.12301,1780.9,1780.8,1.12299]
[1746037870282,1.12301,1780.9,1780.8,2.86049]
[1746037870691,6.33976,1781.0,1780.9,1.12297]
[1746037871188,6.33976,1781.0,1780.9,4.95097]
[1746037871791,3.947,1781.0,1780.9,4.95097]
[1746037872497,4.06222,1781.3,1781.0,1.1229]
[1746037872498,8.4102,1781.3,1781.0,1.1229]
[1746037872794,8.4102,1781.3,1781.2,1.12278]
[1746037872994,5.06971,1781.3,1781.2,1.12278]
[1746037873199,3.947,1781.3,1781.2,4.95078]
[1746037874002,7.46379821,1781.4,1781.3,1.12271]
[1746037874296,7.46379821,1781.4,1781.3,6.66011]
[1746037874697,8.58644821,1781.4,1781.3,6.66011]
[1746037874892,7.46379821,1781.4,1781.3,6.66011]
[1746037875498,8.58644821,1781.4,1781.3,6.66011]
[1746037875995,7.46379821,1781.4,1781.3,6.66011]
[1746037876496,8.58644821,1781.4,1781.3,3.828]
[1746037876698,13.79484821,1781.4,1781.3,0.06000001]
[1746037877196,13.79484821,1781.4,1781.0,1.12286]
[1746037877197,1.1229,1781.0,1780.9,1.12292]
[1746037877893,1.12297,1780.9,1780.8,1.669]
[1746037878091,1.12297,1780.9,1780.5,14.3917]
[1746037878092,2.80746,1780.9,1780.5,9.0378]
[1746037878292,1.12316,1780.6,1780.5,4.33098]
[1746037879099,1.12316,1780.6,1780.5,8.15898]
[1746037879402,1.12316,1780.6,1780.5,8.99932]
[1746037881297,1.12316,1780.6,1780.5,4.66834]
[1746037882197,1.12312,1780.7,1780.6,1.12309]
[1746037882400,8.4855,1780.8,1780.5,4.66834]
[1746037882401,9.60858,1780.8,1780.7,1.12309]
[1746037883098,8.4855,1780.8,1780.7,4.95109]
[1746037883296,7.1548,1780.8,1780.7,4.95109]
[1746037883696,3.947,1780.8,1780.7,4.95109]
[1746037884006,5.07003,1780.8,1780.7,3.828]
[1746037884706,8.27783,1780.8,1780.7,3.828]
[1746037885206,1.12309,1780.7,1780.6,1.12314]
[1746037885706,1.12316,1780.6,1780.5,5.17132]
[1746037886097,1.12316,1780.6,1780.5,8.99932]
[1746037887001,1.12316,1780.6,1780.5,7.87614]
[1746037887207,13.15896,1780.6,1780.5,0.84034]
[1746037887796,9.39456,1780.6,1780.5,0.84034]
[1746037888199,1.2356,1780.6,1780.5,1.96356]
[1746037888404,3.947,1780.6,1780.5,1.96356]
[1746037888605,3.947,1780.6,1780.5,3.71746]
[1746037888803,1.7365,1780.9,1780.8,1.12303]
[1746037889006,13.88435117,1781.0,1780.9,1.12297]
[1746037889206,14.49793117,1781.0,1780.9,1.12297]
[1746037889403,15.62083117,1781.0,1780.9,1.12297]
[1746037889604,15.62083117,1781.0,1780.9,2.82177]
[1746037889804,10.0142,1781.0,1780.9,2.82177]
[1746037890504,3.947,1781.0,1780.9,2.82177]
[1746037890700,5.60663117,1781.2,1780.9,1.6988]
[1746037890904,7.46379821,1781.3,1781.2,1.12278]
[1746037891207,7.46379821,1781.3,1781.2,8.15858]
[1746037891394,9.34855259,1781.4,1781.3,1.12271]
[1746037891598,7.24112197,1781.4,1781.3,9.94481]
[1746037891800,5.93057197,1781.4,1781.3,14.94481]
[1746037892001,5.93057197,1781.4,1781.3,55.74481]
[1746037892210,5.93057197,1781.4,1781.3,59.57281]
[1746037893408,4.69052197,1781.4,1781.3,59.57281]
[1746037893603,1.7597,1781.9,1781.3,59.57281]
[1746037893604,3.947,1782.0,1781.6,2.80625]
[1746037893801,3.947,1782.0,1781.9,1.12234]
[1746037894200,3.947,1782.0,1781.9,4.95034]
[1746037894909,5.06927,1782.0,1781.9,3.828]
[1746037895104,6.81837,1782.0,1781.9,4.95034]
[1746037895314,5.6961,1782.0,1781.9,4.95034]
[1746037895603,2.87137,1782.0,1781.9,3.828]
[1746037896010,2.87137,1782.0,1781.9,4.95034]
[1746037896210,1.7491,1782.0,1781.9,1.12234]
[1746037896702,7.1548,1782.1,1782.0,1.12227]
[1746037896904,8.7519,1782.1,1782.0,1.12227]
[1746037897404,4.5185,1782.3,1782.2,1.12215]
[1746037897600,2.9078,1782.3,1782.2,1.12215]
[1746037898005,4.02988,1782.3,1782.2,1.12215]
[1746037900112,1.12215,1782.2,1782.1,2.85207]
[1746037900303,2.88225,1782.2,1782.1,2.85207]
[1746037900504,6.31077,1782.4,1782.3,1.12208]
[1746037900808,1.1223,1782.0,1781.9,1.12229]
[1746037901008,1.1223,1782.0,1781.9,2.84719]
[1746037901210,1.1223,1782.0,1781.9,3.828]
[1746037901811,2.7253,1782.0,1781.9,3.828]
[1746037902111,1.1224,1781.8,1781.7,1.12243]
[1746037902313,1.12246,1781.7,1781.6,2.84738]
[1746037902612,1.12253,1781.6,1781.5,6.95254]
[1746037902801,1.12253,1781.6,1781.5,5.83]
[1746037903204,1.12253,1781.6,1781.5,10.78059]
[1746037903404,1.12253,1781.6,1781.5,12.39139]
[1746037903907,1.12253,1781.6,1781.5,9.658]
[1746037904113,1.12253,1781.6,1781.5,10.78059]
[1746037904304,2.72553,1781.6,1781.5,10.78059]
[1746037904509,3.2078,1781.7,1781.6,1.12253]
[1746037904812,1.12229,1782.0,1781.9,1.12228]
[1746037905210,1.12229,1782.0,1781.9,4.95028]
[1746037905410,6.66827,1782.1,1782.0,1.12227]
[1746037905608,5.06527,1782.1,1782.0,2.77497]
[1746037906113,5.06521,1782.1,1782.0,6.60297]
[1746037906413,1.12213,1782.3,1782.2,1.12215]
[1746037906711,1.12218,1782.2,1782.1,1.12216]
[1746037907509,4.40826,1782.3,1782.0,3.828]
[1746037907815,1.12221,1782.1,1782.0,4.95022]
[1746037908809,1.12221,1782.1,1782.0,4.95027]
[1746037910212,1.12218,1782.2,1782.1,1.12215]
[1746037910417,2.75938,1782.2,1782.1,2.79035]
[1746037910817,1.6372,1782.2,1782.1,2.79035]
[1746037911019,1.12214,1782.3,1782.2,1.12215]
[1746037911314,9.86717,1782.4,1782.3,1.12208]
[1746037911515,8.27287,1782.4,1782.3,1.12208]
[1746037911711,3.942,1782.6,1782.2,7.63844]
[1746037911917,3.942,1782.6,1782.4,1.12196]
[1746037911918,1.12198,1782.5,1782.4,1.12196]